fUSD/lending_fUSD_20250609
["ID","MTS","AMOUNT","RATE_DAILY","PERIOD"]
[365051202,1749427848927,-480.0,0.00018858,2]
[365051203,1749427848936,-400.0,0.00018858,2]
[365051204,1749427848946,-539.01,0.00018858,2]
[365051205,1749427848956,-933.84,0.00018858,2]
[365051206,1749427848966,-480.0,0.00018858,2]
[365051207,1749427848977,-814.01,0.00018858,2]
[365051208,1749427848987,-618.59,0.00018858,2]
[365051209,1749427848998,-1727.89,0.00018858,2]
[365051210,1749427849009,-480.0,0.00018858,2]
[365051211,1749427849018,-480.0,0.00018858,2]
[365051212,1749427849028,-480.0,0.00018858,2]
[365051213,1749427849037,-481.04,0.00018858,2]
[365051214,1749427849047,-2360.84,0.00018858,2]
[365051215,1749427849057,-480.0,0.00018858,2]
[365051216,1749427849066,-480.0,0.00018858,2]
[365051217,1749427849075,-480.0,0.00018858,2]
[365051218,1749427849087,-480.0,0.00018858,2]
[365051219,1749427849096,-480.0,0.00018859,2]
[365051220,1749427849106,-480.0,0.00018859,2]
[365051221,1749427849115,-483.56,0.00018859,2]
[365051222,1749427849124,-480.0,0.00018859,2]
[365051223,1749427849133,-480.0,0.00018859,2]
[365051224,1749427849143,-480.0,0.00018859,2]
[365051225,1749427849152,-480.0,0.00018859,2]
[365051226,1749427849162,-480.0,0.00018859,2]
[365051227,1749427849171,-480.0,0.00018859,2]
[365051228,1749427849181,-480.0,0.00018859,2]
[365051229,1749427849191,-480.0,0.00018859,2]
[365051230,1749427849201,-480.0,0.00018859,2]
[365051231,1749427849210,-372.17471555,0.00018859,2]
[365051232,1749427849220,-480.0,0.00018859,2]
[365051233,1749427849229,-365.1067808,0.00018859,2]
[365051234,1749427849239,-480.0,0.00018859,2]
[365051235,1749427849248,-480.0,0.00018859,2]
[365051236,1749427849257,-480.0,0.00018859,2]
[365051237,1749427849266,-480.0,0.00018859,2]
[365051238,1749427849275,-480.0,0.00018859,2]
[365051239,1749427849285,-480.0,0.00018859,2]
[365051240,1749427849294,-480.0,0.00018859,2]
[365051241,1749427849303,-480.0,0.00018859,2]
[365051242,1749427849313,-480.0,0.00018859,2]
[365051243,1749427849322,-480.0,0.00018859,2]
[365051244,1749427849333,-480.0,0.00018859,2]
[365051245,1749427849343,-480.0,0.00018859,2]
[365051246,1749427849352,-480.0,0.00018859,2]
[365051247,1749427849361,-480.0,0.00018859,2]
[365051248,1749427849370,-480.0,0.00018859,2]
[365051249,1749427849380,-610.64897906,0.00018859,2]
[365051250,1749427849389,-480.0,0.00018859,2]
[365051251,1749427849399,-480.0,0.00018859,2]
[365051252,1749427849408,-480.0,0.00018859,2]
[365051253,1749427849418,-480.0,0.00018859,2]
[365051254,1749427849427,-480.0,0.00018859,2]
[365051255,1749427849437,-288.34039023,0.00018859,2]
[365051256,1749427849446,-480.0,0.00018859,2]
[365051257,1749427849456,-531.54,0.00018859,2]
[365051258,1749427849465,-480.0,0.00018859,2]
[365051259,1749427849475,-480.0,0.00018859,2]
[365051260,1749427849484,-480.0,0.00018859,2]
[365051261,1749427849493,-480.0,0.00018859,2]
[365051262,1749427849503,-451.55483124,0.00018859,2]
[365051263,1749427849512,-480.0,0.00018859,2]
[365051264,1749427849521,-480.0,0.00018859,2]
[365051265,1749427849530,-365.82594586,0.00018859,2]
[365051266,1749427849539,-480.0,0.00018859,2]
[365051267,1749427849549,-369.71431052,0.00018859,2]
[365051268,1749427849558,-360.0,0.00018859,2]
[365051269,1749427849568,-449.69707718,0.00018859,2]
[365051270,1749427849578,-480.0,0.00018859,2]
[365051271,1749427849590,-480.0,0.00018859,2]
[365051272,1749427849599,-480.0,0.00018859,2]
[365051273,1749427849608,-480.0,0.00018859,2]
[365051274,1749427849617,-480.0,0.00018859,2]
[365051275,1749427849627,-480.0,0.00018859,2]
[365051276,1749427849636,-480.0,0.00018859,2]
[365051277,1749427849645,-480.0,0.00018859,2]
[365051278,1749427849654,-480.0,0.00018859,2]
[365051279,1749427849663,-480.0,0.00018859,2]
[365051280,1749427849673,-480.0,0.00018859,2]
[365051281,1749427849682,-480.0,0.00018859,2]
[365051282,1749427849691,-480.0,0.00018859,2]
[365051283,1749427849700,-480.0,0.00018859,2]
[365051284,1749427849710,-480.0,0.00018859,2]
[365051285,1749427849719,-480.0,0.00018859,2]
[365051286,1749427849729,-480.0,0.00018859,2]
[365051287,1749427849738,-376.38754354,0.00018859,2]
[365051288,1749427849747,-480.0,0.00018859,2]
[365051289,1749427849760,-238.02795047,0.00018859,2]
[365051290,1749427849769,-480.0,0.00018859,2]
[365051291,1749427849779,-480.0,0.00018859,2]
[365051292,1749427849788,-610.9,0.00018859,2]
[365051293,1749427849797,-480.0,0.00018859,2]
[365051294,1749427849806,-480.0,0.00018859,2]
[365051295,1749427849815,-480.0,0.00018859,2]
[365051296,1749427849823,-480.0,0.00018859,2]
[365051297,1749427849835,-480.0,0.00018859,2]
[365051298,1749427849845,-480.0,0.00018859,2]
[365051299,1749427849854,-300.0,0.00018859,2]
[365051300,1749427849863,-480.0,0.00018859,2]
[365051301,1749427849872,-516.58,0.00018859,2]
[365051302,1749427849881,-480.0,0.00018859,2]
[365051303,1749427849891,-480.0,0.00018859,2]
[365051304,1749427849900,-480.0,0.00018859,2]
[365051305,1749427849909,-480.0,0.00018859,2]
[365051306,1749427849918,-500.0,0.00018859,2]
[365051307,1749427849927,-538.68,0.00018859,2]
[365051308,1749427849936,-480.0,0.00018859,2]
[365051309,1749427849945,-480.0,0.00018859,2]
[365051310,1749427849954,-360.0,0.00018859,2]
[365051311,1749427849963,-370.6205233,0.00018859,2]
[365051312,1749427849973,-368.22784615,0.00018859,2]
[365051313,1749427849983,-480.0,0.00018859,2]
[365051314,1749427849992,-1954.47,0.00018859,2]
[365051315,1749427850001,-480.0,0.00018859,2]
[365051316,1749427850011,-480.0,0.00018859,2]
[365051317,1749427850020,-480.0,0.00018859,2]
[365051318,1749427850029,-480.0,0.00018859,2]
[365051319,1749427850038,-367.86548917,0.00018859,2]
[365051320,1749427850047,-480.0,0.00018859,2]
[365051321,1749427850056,-480.0,0.00018859,2]
[365051322,1749427850065,-480.0,0.00018859,2]
[365051323,1749427850075,-480.0,0.00018859,2]
[365051324,1749427850086,-480.0,0.00018859,2]
[365051325,1749427850095,-480.0,0.00018859,2]
[365051326,1749427850104,-480.0,0.00018859,2]
[365051327,1749427850114,-480.0,0.00018859,2]
[365051328,1749427850123,-480.0,0.00018859,2]
[365051329,1749427850132,-480.0,0.00018859,2]
[365051330,1749427850142,-480.0,0.00018859,2]
[365051331,1749427850151,-480.0,0.00018859,2]
[365051332,1749427850160,-480.0,0.00018859,2]
[365051333,1749427850170,-480.0,0.00018859,2]
[365051334,1749427850179,-372.79425998,0.00018859,2]
[365051335,1749427850188,-480.0,0.00018859,2]
[365051336,1749427850198,-480.0,0.00018859,2]
[365051337,1749427850207,-480.0,0.00018859,2]
[365051338,1749427850216,-480.0,0.00018859,2]
[365051339,1749427850225,-480.0,0.00018859,2]
[365051340,1749427850234,-480.0,0.00018859,2]
[365051341,1749427850243,-480.0,0.00018859,2]
[365051342,1749427850252,-480.0,0.00018859,2]
[365051343,1749427850261,-366.27973899,0.00018859,2]
[365051344,1749427850270,-480.0,0.00018859,2]
[365051345,1749427850279,-480.0,0.00018859,2]
[365051346,1749427850288,-648.05,0.00018859,2]
[365051347,1749427850297,-500.0,0.00018859,2]
[365051348,1749427850306,-480.0,0.00018859,2]
[365051349,1749427850316,-672.63,0.00018859,2]
[365051350,1749427850325,-480.0,0.00018859,2]
[365051351,1749427850334,-277.38109646,0.00018859,2]
[365051352,1749427850343,-480.0,0.00018859,2]
[365051353,1749427850352,-480.0,0.00018859,2]
[365051354,1749427850361,-480.0,0.00018859,2]
[365051355,1749427850370,-666.1,0.00018859,2]
[365051356,1749427850379,-480.0,0.00018859,2]
[365051357,1749427850388,-480.0,0.00018859,2]
[365051358,1749427850397,-480.0,0.00018859,2]
[365051359,1749427850406,-480.0,0.00018859,2]
[365051360,1749427850415,-480.0,0.00018859,2]
[365051361,1749427850425,-480.0,0.00018859,2]
[365051362,1749427850434,-480.0,0.00018859,2]
[365051363,1749427850443,-480.0,0.00018859,2]
[365051364,1749427850453,-809.76,0.00018859,2]
[365051365,1749427850462,-480.0,0.00018859,2]
[365051366,1749427850471,-213.27342866,0.00018859,2]
[365051367,1749427850480,-480.0,0.00018859,2]
[365051368,1749427850489,-284.45681871,0.00018859,2]
[365051369,1749427850498,-480.0,0.00018859,2]
[365051370,1749427850507,-480.0,0.00018859,2]
[365051371,1749427850517,-480.0,0.00018859,2]
[365051372,1749427850526,-480.0,0.00018859,2]
[365051373,1749427850535,-480.0,0.00018859,2]
[365051374,1749427850544,-480.0,0.00018859,2]
[365051375,1749427850553,-480.0,0.00018859,2]
[365051376,1749427850698,-480.0,0.00018859,2]
[365051377,1749427850708,-480.0,0.00018859,2]
[365051378,1749427850718,-480.0,0.00018859,2]
[365051379,1749427850727,-480.0,0.00018859,2]
[365051380,1749427850737,-480.0,0.00018859,2]
[365051381,1749427850746,-481.4,0.00018859,2]
[365051382,1749427850760,-480.0,0.00018859,2]
[365051383,1749427850770,-480.0,0.00018859,2]
[365051384,1749427850779,-480.0,0.00018859,2]
[365051385,1749427850789,-480.0,0.00018859,2]
[365051386,1749427850798,-480.0,0.00018859,2]
[365051387,1749427850808,-364.84613564,0.00018859,2]
[365051388,1749427850818,-480.0,0.00018859,2]
[365051389,1749427850827,-480.0,0.00018859,2]
[365051390,1749427850839,-480.0,0.00018859,2]
[365051391,1749427850849,-480.0,0.00018859,2]
[365051392,1749427850858,-480.0,0.00018859,2]
[365051393,1749427850868,-480.0,0.00018859,2]
[365051394,1749427850878,-585.97,0.00018859,2]
[365051395,1749427850888,-365.91727282,0.00018859,2]
[365051396,1749427850899,-480.0,0.00018859,2]
[365051397,1749427850908,-480.0,0.00018859,2]
[365051398,1749427850918,-866.26,0.00018859,2]
[365051399,1749427850927,-480.0,0.00018859,2]
[365051400,1749427850937,-480.0,0.00018859,2]
[365051401,1749427850947,-559.86,0.00018859,2]
[365051402,1749427850957,-480.0,0.00018859,2]
[365051403,1749427850967,-480.0,0.00018859,2]
[365051404,1749427850976,-480.0,0.00018859,2]
[365051405,1749427850986,-480.0,0.00018859,2]
[365051406,1749427850995,-480.0,0.00018859,2]
[365051407,1749427851005,-480.0,0.00018859,2]
[365051408,1749427851015,-480.0,0.00018859,2]
[365051409,1749427851024,-505.14,0.00018859,2]
[365051410,1749427851034,-480.0,0.00018859,2]
[365051411,1749427851044,-480.0,0.00018859,2]
[365051412,1749427851054,-480.0,0.00018859,2]
[365051413,1749427851063,-480.0,0.00018859,2]
[365051414,1749427851072,-363.1662154,0.00018859,2]
[365051415,1749427851083,-364.58067995,0.00018859,2]
[365051416,1749427851092,-480.0,0.00018859,2]
[365051417,1749427851102,-480.0,0.00018859,2]
[365051418,1749427851111,-519.01,0.00018859,2]
[365051419,1749427851120,-1258.9,0.00018859,2]
[365051420,1749427851130,-480.0,0.00018859,2]
[365051421,1749427851139,-563.07,0.00018859,2]
[365051422,1749427851149,-631.72,0.00018859,2]
[365051423,1749427851158,-480.0,0.00018859,2]
[365051424,1749427851168,-487.95,0.00018859,2]
[365051425,1749427851177,-526.48,0.00018859,2]
[365051426,1749427851186,-895.53,0.00018859,2]
[365051427,1749427851196,-691.91,0.00018859,2]
[365051428,1749427851205,-1013.38,0.00018859,2]
[365051429,1749427851214,-480.0,0.00018859,2]
[365051430,1749427851224,-522.65,0.00018859,2]
[365051431,1749427851233,-480.0,0.00018859,2]
[365051432,1749427851243,-480.0,0.00018859,2]
[365051433,1749427851253,-644.32,0.00018859,2]
[365051434,1749427851262,-480.0,0.00018859,2]
[365051435,1749427851271,-551.92,0.00018859,2]
[365051436,1749427851280,-582.88,0.00018859,2]
[365051437,1749427851290,-480.0,0.00018859,2]
[365051438,1749427851299,-480.0,0.00018859,2]
[365051439,1749427851309,-480.0,0.00018859,2]
[365051440,1749427851318,-480.0,0.0001886,2]
[365051441,1749427851327,-389.53825378,0.0001886,2]
[365051442,1749427851337,-480.0,0.0001886,2]
[365051443,1749427851347,-288.33230375,0.0001886,2]
[365051444,1749427851356,-283.1612661,0.0001886,2]
[365051445,1749427851365,-480.0,0.0001886,2]
[365051446,1749427851374,-480.0,0.0001886,2]
[365051447,1749427851383,-500.0,0.0001886,2]
[365051448,1749427851393,-500.0,0.00018873,2]
[365051449,1749427851402,-500.82830807,0.00018873,2]
[365051450,1749427851411,-167.07802901,0.00018873,2]
[365051451,1749427851421,-500.0,0.00018873,2]
[365051452,1749427851430,-437.45115409,0.00018873,2]
[365051453,1749427851440,-500.86807127,0.00018873,2]
[365051454,1749427851449,-500.0,0.00018873,2]
[365051455,1749427851458,-152.0,0.00018932,3]
[365051456,1749427851468,-2322.43425576,0.00018934,2]
[365051457,1749427851477,-300.0,0.00018982,2]
[365051458,1749427851487,-250.0,0.00019,2]
[365051459,1749427851496,-16000.0,0.00019,2]
[365051460,1749427851505,-211.72945953,0.00019021,2]
[365051461,1749427851514,-480.0,0.00019022,2]
[365051462,1749427851523,-480.0,0.00019022,2]
[365051463,1749427851532,-480.0,0.00019022,2]
[365051464,1749427851541,-480.0,0.00019022,2]
[365051465,1749427851551,-480.0,0.00019022,2]
[365051466,1749427851560,-480.0,0.00019022,2]
[365051467,1749427851569,-480.0,0.00019022,2]
[365051468,1749427851578,-220.0,0.00019022,2]
[365051469,1749427851589,-480.0,0.00019022,2]
[365051470,1749427851598,-480.0,0.00019022,2]
[365051471,1749427851607,-480.0,0.00019022,2]
[365051472,1749427851617,-480.0,0.00019022,2]
[365051473,1749427851625,-480.0,0.00019022,2]
[365051474,1749427851635,-480.0,0.00019022,2]
[365051475,1749427851645,-480.0,0.00019022,2]
[365051476,1749427851654,-480.0,0.00019022,2]
[365051477,1749427851663,-859.25,0.00019022,2]
[365051478,1749427851672,-480.0,0.00019022,2]
[365051479,1749427851681,-300.0,0.00019022,2]
[365051480,1749427851690,-507.36381264,0.00019022,2]
[365051481,1749427851699,-480.0,0.00019022,2]
[365051482,1749427851709,-480.0,0.00019022,2]
[365051483,1749427851718,-480.0,0.00019022,2]
[365051484,1749427851727,-480.0,0.00019022,2]
[365051485,1749427851736,-480.0,0.00019022,2]
[365051486,1749427851748,-220.0,0.00019022,2]
[365051487,1749427851757,-480.0,0.00019022,2]
[365051488,1749427851766,-380.0,0.00019022,2]
[365051489,1749427851775,-480.0,0.00019022,2]
[365051490,1749427851784,-225.65617985,0.00019022,2]
[365051491,1749427851794,-480.0,0.00019022,2]
[365051492,1749427851803,-480.0,0.00019022,2]
[365051493,1749427851813,-691.74,0.00019022,2]
[365051494,1749427851823,-432.57147295,0.00019022,2]
[365051495,1749427851832,-256.34,0.00019022,2]
[365051496,1749427851844,-321.90984541,0.00019022,2]
[365051497,1749427851853,-451.7648327,0.00019022,2]
[365051498,1749427851862,-480.0,0.00019022,2]
[365051499,1749427851872,-226.52121377,0.00019022,2]
[365051500,1749427851883,-1304.9,0.00019022,2]
[365051501,1749427851892,-480.0,0.00019022,2]
[365051502,1749427851902,-480.0,0.00019022,2]
[365051503,1749427851912,-225.83612227,0.00019022,2]
[365051504,1749427851921,-480.0,0.00019022,2]
[365051505,1749427851931,-480.0,0.00019022,2]
[365051506,1749427851941,-550.46,0.00019022,2]
[365051507,1749427851950,-480.0,0.00019022,2]
[365051508,1749427851959,-428.32633763,0.00019022,2]
[365051509,1749427851969,-480.0,0.00019022,2]
[365051510,1749427851978,-480.0,0.00019022,2]
[365051511,1749427851988,-480.0,0.00019022,2]
[365051512,1749427851997,-573.28,0.00019022,2]
[365051513,1749427852007,-846.62,0.00019022,2]
[365051514,1749427852017,-480.0,0.00019022,2]
[365051515,1749427852027,-480.0,0.00019022,2]
[365051516,1749427852036,-480.0,0.00019022,2]
[365051517,1749427852045,-480.0,0.00019022,2]
[365051518,1749427852054,-1165.27,0.00019022,2]
[365051519,1749427852064,-480.0,0.00019022,2]
[365051520,1749427852073,-480.0,0.00019022,2]
[365051521,1749427852083,-480.0,0.00019022,2]
[365051522,1749427852094,-229.39309147,0.00019022,2]
[365051523,1749427852103,-575.23,0.00019022,2]
[365051524,1749427852112,-220.0,0.00019022,2]
[365051525,1749427852122,-599.95,0.00019022,2]
[365051526,1749427852131,-480.0,0.00019022,2]
[365051527,1749427852140,-480.0,0.00019022,2]
[365051528,1749427852150,-480.0,0.00019022,2]
[365051529,1749427852159,-970.64,0.00019022,2]
[365051530,1749427852168,-480.0,0.00019022,2]
[365051531,1749427852178,-587.24,0.00019022,2]
[365051532,1749427852187,-480.0,0.00019022,2]
[365051533,1749427852196,-480.0,0.00019022,2]
[365051534,1749427852206,-480.0,0.00019022,2]
[365051535,1749427852215,-746.73,0.00019022,2]
[365051536,1749427852224,-480.0,0.00019022,2]
[365051537,1749427852233,-313.19826858,0.00019022,2]
[365051538,1749427852242,-480.0,0.00019022,2]
[365051539,1749427852251,-480.0,0.00019022,2]
[365051540,1749427852260,-480.0,0.00019022,2]
[365051541,1749427852270,-499.38,0.00019022,2]
[365051542,1749427852279,-246.83460554,0.00019022,2]
[365051543,1749427852288,-480.0,0.00019022,2]
[365051544,1749427852297,-335.58194937,0.00019022,2]
[365051545,1749427852307,-480.0,0.00019022,2]
[365051546,1749427852316,-480.0,0.00019022,2]
[365051547,1749427852325,-546.57004016,0.00019022,2]
[365051548,1749427852336,-480.0,0.00019022,2]
[365051549,1749427852345,-480.0,0.00019022,2]
[365051550,1749427852355,-480.0,0.00019022,2]
[365051551,1749427852365,-608.12,0.00019022,2]
[365051552,1749427852375,-480.0,0.00019022,2]
[365051553,1749427852384,-316.95685035,0.00019022,2]
[365051554,1749427852394,-294.26246738,0.00019022,2]
[365051555,1749427852403,-458.79681548,0.00019022,2]
[365051556,1749427852413,-237.53251793,0.00019022,2]
[365051557,1749427852423,-480.0,0.00019022,2]
[365051558,1749427852433,-480.0,0.00019022,2]
[365051559,1749427852443,-480.0,0.00019022,2]
[365051560,1749427852453,-480.0,0.00019022,2]
[365051561,1749427852462,-480.0,0.00019022,2]
[365051562,1749427852471,-480.0,0.00019022,2]
[365051563,1749427852481,-480.0,0.00019022,2]
[365051564,1749427852490,-480.0,0.00019022,2]
[365051565,1749427852500,-480.0,0.00019022,2]
[365051566,1749427852510,-480.0,0.00019022,2]
[365051567,1749427852520,-480.0,0.00019022,2]
[365051568,1749427852530,-480.0,0.00019022,2]
[365051569,1749427852540,-480.0,0.00019022,2]
[365051570,1749427852549,-480.0,0.00019022,2]
[365051571,1749427852559,-480.0,0.00019022,2]
[365051572,1749427852568,-319.75395739,0.00019022,2]
[365051573,1749427852577,-480.0,0.00019022,2]
[365051574,1749427852588,-480.0,0.00019022,2]
[365051575,1749427852597,-480.0,0.00019022,2]
[365051576,1749427852607,-541.18,0.00019022,2]
[365051577,1749427852616,-480.0,0.00019022,2]
[365051578,1749427852625,-480.0,0.00019022,2]
[365051579,1749427852635,-480.0,0.00019022,2]
[365051580,1749427852645,-480.0,0.00019022,2]
[365051581,1749427852654,-480.0,0.00019022,2]
[365051582,1749427852664,-480.0,0.00019022,2]
[365051583,1749427852673,-656.77,0.00019022,2]
[365051584,1749427852683,-480.0,0.00019022,2]
[365051585,1749427852692,-514.83,0.00019022,2]
[365051586,1749427852701,-480.0,0.00019022,2]
[365051587,1749427852710,-260.80709691,0.00019022,2]
[365051588,1749427852720,-480.0,0.00019022,2]
[365051589,1749427852729,-480.0,0.00019022,2]
[365051590,1749427852738,-480.0,0.00019022,2]
[365051591,1749427852753,-480.0,0.00019022,2]
[365051592,1749427852762,-480.0,0.00019022,2]
[365051593,1749427852772,-480.0,0.00019022,2]
[365051594,1749427852781,-480.0,0.00019022,2]
[365051595,1749427852792,-480.0,0.00019022,2]
[365051596,1749427852802,-480.0,0.00019022,2]
[365051597,1749427852812,-480.0,0.00019022,2]
[365051598,1749427852822,-480.0,0.00019022,2]
[365051599,1749427852831,-480.0,0.00019022,2]
[365051600,1749427852843,-480.0,0.00019022,2]
[365051601,1749427852853,-480.0,0.00019022,2]
[365051602,1749427852862,-480.0,0.00019022,2]
[365051603,1749427852872,-1015.18,0.00019022,2]
[365051604,1749427852882,-480.0,0.00019022,2]
[365051605,1749427852892,-480.0,0.00019022,2]
[365051606,1749427852901,-480.0,0.00019022,2]
[365051607,1749427852911,-510.48,0.00019022,2]
[365051608,1749427852920,-480.0,0.00019022,2]
[365051609,1749427852930,-480.0,0.00019022,2]
[365051610,1749427852939,-157.13277254,0.00019022,2]
[365051611,1749427852948,-549.87,0.00019022,2]
[365051612,1749427852958,-480.0,0.00019022,2]
[365051613,1749427852967,-473.03777852,0.00019022,2]
[365051614,1749427852976,-480.0,0.00019022,2]
[365051615,1749427852985,-480.0,0.00019022,2]
[365051616,1749427852995,-346.55236483,0.00019022,2]
[365051617,1749427853005,-521.3344446,0.00019022,2]
[365051618,1749427853014,-480.0,0.00019022,2]
[365051619,1749427853024,-480.0,0.00019022,2]
[365051620,1749427853035,-480.0,0.00019022,2]
[365051621,1749427853045,-524.49,0.00019022,2]
[365051622,1749427853055,-480.0,0.00019022,2]
[365051623,1749427853064,-480.0,0.00019022,2]
[365051624,1749427853074,-480.0,0.00019022,2]
[365051625,1749427853085,-480.0,0.00019022,2]
[365051626,1749427853094,-480.0,0.00019022,2]
[365051627,1749427853104,-480.0,0.00019022,2]
[365051628,1749427853113,-522.38,0.00019022,2]
[365051629,1749427853123,-480.0,0.00019022,2]
[365051630,1749427853132,-480.0,0.00019022,2]
[365051631,1749427853141,-480.0,0.00019022,2]
[365051632,1749427853151,-480.0,0.00019022,2]
[365051633,1749427853161,-480.0,0.00019022,2]
[365051634,1749427853171,-480.0,0.00019022,2]
[365051635,1749427853312,-1024.3,0.00019022,2]
[365051636,1749427853322,-480.0,0.00019022,2]
[365051637,1749427853331,-480.0,0.00019022,2]
[365051638,1749427853342,-530.22,0.00019022,2]
[365051639,1749427853351,-480.0,0.00019022,2]
[365051640,1749427853361,-480.0,0.00019022,2]
[365051641,1749427853370,-575.91457646,0.00019022,2]
[365051642,1749427853380,-480.0,0.00019022,2]
[365051643,1749427853389,-480.0,0.00019022,2]
[365051644,1749427853399,-507.75,0.00019022,2]
[365051645,1749427853408,-480.0,0.00019022,2]
[365051646,1749427853417,-480.0,0.00019022,2]
[365051647,1749427853426,-620.47,0.00019022,2]
[365051648,1749427853435,-480.0,0.00019022,2]
[365051649,1749427853445,-694.69,0.00019022,2]
[365051650,1749427853454,-757.81,0.00019022,2]
[365051651,1749427853463,-480.0,0.00019022,2]
[365051652,1749427853472,-480.0,0.00019022,2]
[365051653,1749427853481,-1907.22,0.00019022,2]
[365051654,1749427853490,-480.0,0.00019022,2]
[365051655,1749427853500,-731.25,0.00019022,2]
[365051656,1749427853509,-480.0,0.00019022,2]
[365051657,1749427853518,-1257.91,0.00019022,2]
[365051658,1749427853527,-480.0,0.00019022,2]
[365051659,1749427853537,-667.25,0.00019022,2]
[365051660,1749427853546,-480.0,0.00019022,2]
[365051661,1749427853555,-480.0,0.00019022,2]
[365051662,1749427853564,-480.0,0.00019022,2]
[365051663,1749427853576,-625.23,0.00019022,2]
[365051664,1749427853594,-480.0,0.00019022,2]
[365051665,1749427853603,-480.0,0.00019022,2]
[365051666,1749427853612,-584.97,0.00019022,2]
[365051667,1749427853622,-480.0,0.00019022,2]
[365051668,1749427853631,-665.04,0.00019022,2]
[365051669,1749427853639,-480.0,0.00019022,2]
[365051670,1749427853648,-922.23,0.00019022,2]
[365051671,1749427853657,-480.0,0.00019022,2]
[365051672,1749427853666,-480.0,0.00019022,2]
[365051673,1749427853675,-4762.67,0.00019022,2]
[365051674,1749427853684,-626.04,0.00019022,2]
[365051675,1749427853694,-480.0,0.00019022,2]
[365051676,1749427853703,-480.0,0.00019022,2]
[365051677,1749427853713,-918.36,0.00019022,2]
[365051678,1749427853722,-556.85,0.00019022,2]
[365051679,1749427853731,-480.0,0.00019022,2]
[365051680,1749427853740,-516.91,0.00019022,2]
[365051681,1749427853751,-480.0,0.00019022,2]
[365051682,1749427853761,-480.0,0.00019022,2]
[365051683,1749427853771,-480.0,0.00019022,2]
[365051684,1749427853781,-634.6,0.00019022,2]
[365051685,1749427853790,-480.0,0.00019022,2]
[365051686,1749427853799,-743.22,0.00019022,2]
[365051687,1749427853808,-480.0,0.00019022,2]
[365051688,1749427853817,-480.0,0.00019022,2]
[365051689,1749427853827,-875.91,0.00019022,2]
[365051690,1749427853836,-480.0,0.00019022,2]
[365051691,1749427853846,-589.96,0.00019022,2]
[365051692,1749427853855,-304.09079214,0.00019022,2]
[365051693,1749427853864,-480.0,0.00019022,2]
[365051694,1749427853874,-480.0,0.00019022,2]
[365051695,1749427853883,-480.0,0.00019022,2]
[365051696,1749427853893,-480.0,0.00019022,2]
[365051697,1749427853902,-306.22458759,0.00019022,2]
[365051698,1749427853912,-480.0,0.00019022,2]
[365051699,1749427853921,-480.0,0.00019022,2]
[365051700,1749427853931,-1146.57,0.00019022,2]
[365051701,1749427853940,-480.0,0.00019022,2]